[Event "Mistrovství Čech mládeže 2023 - HD12"]
[Site "Harrachov, Czech Republic"]
[Date "2023.10.22"]
[Round "2.4"]
[White "Artamonov, Mikhail"]
[Black "Pádivý, Jan"]
[Result "1-0"]
[TimeControl "90m + 30s"]
[WhiteElo "1458"]
[BlackElo "1228"]

1. e4 {[%clk 01:30:56]} {[%emt 00:00:03]} c5 {[%clk 01:30:49]} {[%emt
00:00:11]} 2. Nf3 {[%clk 01:31:12]} {[%emt 00:00:14]} Nc6 {[%clk 01:30:51]}
{[%emt 00:00:28]} 3. c4 {[%clk 01:31:28]} {[%emt 00:00:14]} e6 {[%clk
01:23:30]} {[%emt 00:07:51]} 4. Nc3 {[%clk 01:30:37]} {[%emt 00:01:21]} Nge7
{[%clk 01:22:26]} {[%emt 00:01:29]} 5. d4 {[%clk 01:28:30]} {[%emt 00:02:42]}
cxd4 {[%clk 01:15:57]} {[%emt 00:06:59]} 6. Nb5 {[%clk 01:27:11]} {[%emt
00:01:49]} Ng6 {[%clk 01:13:55]} {[%emt 00:02:32]} 7. Nbxd4 {[%clk 01:26:39]}
{[%emt 00:01:03]} Bb4+ {[%clk 01:12:17]} {[%emt 00:02:07]} 8. Bd2 {[%clk
01:26:20]} {[%emt 00:00:49]} Qa5 {[%clk 01:10:25]} {[%emt 00:02:11]} 9. a3
{[%clk 01:24:05]} {[%emt 00:02:57]} Bxd2+ {[%clk 01:10:28]} {[%emt 00:00:26]}
10. Qxd2 {[%clk 01:24:31]} {[%emt 00:00:04]} Qxd2+ {[%clk 01:10:48]} {[%emt
00:00:10]} 11. Kxd2 {[%clk 01:24:57]} {[%emt 00:00:04]} a6 {[%clk 01:10:10]}
{[%emt 00:01:08]} 12. b4 {[%clk 01:22:13]} {[%emt 00:03:14]} Nce5 {[%clk
01:09:40]} {[%emt 00:01:00]} 13. Ne1 {[%clk 01:19:23]} {[%emt 00:03:19]} b6
{[%clk 01:07:48]} {[%emt 00:02:22]} 14. a4 {[%clk 01:15:47]} {[%emt 00:04:07]}
Bb7 {[%clk 01:07:47]} {[%emt 00:00:30]} 15. f3 {[%clk 01:15:14]} {[%emt
00:01:04]} Ke7 {[%clk 01:04:31]} {[%emt 00:03:42]} 16. Nec2 {[%clk 01:12:55]}
{[%emt 00:02:52]} Rhc8 {[%clk 01:04:37]} {[%emt 00:00:20]} 17. Ne3 {[%clk
01:12:32]} {[%emt 00:00:58]} Nc6 {[%clk 01:01:16]} {[%emt 00:03:48]} 18. Ndc2
{[%clk 01:08:36]} {[%emt 00:04:29]} Nce5 {[%clk 00:59:21]} {[%emt 00:02:21]} 19.
Ne1 {[%clk 00:59:46]} {[%emt 00:09:24]} Kf8 {[%clk 00:51:53]} {[%emt 00:07:51]}
20. g3 {[%clk 00:55:13]} {[%emt 00:05:10]} h5 {[%clk 00:47:50]} {[%emt
00:04:30]} 21. Be2 {[%clk 00:43:02]} {[%emt 00:12:44]} Nc6 {[%clk 00:43:03]}
{[%emt 00:05:17]} 22. N1c2 {[%clk 00:41:40]} {[%emt 00:01:52]} Nce7 {[%clk
00:41:37]} {[%emt 00:01:48]} 23. Rhd1 {[%emt 00:06:54]} Rd8 {[%clk 00:39:06]}
{[%emt 00:00:55]} 24. Ke1 {[%clk 00:36:03]} {[%emt 00:01:57]} Rac8 {[%clk
00:36:39]} {[%emt 00:02:53]} 25. a5 {[%clk 00:35:06]} {[%emt 00:01:31]} bxa5
{[%clk 00:33:15]} {[%emt 00:03:53]} 26. Rxa5 {[%clk 00:35:10]} {[%emt
00:00:27]} h4 {[%clk 00:31:22]} {[%emt 00:02:22]} 27. c5 {[%clk 00:30:14]}
{[%emt 00:05:27]} Nc6 {[%clk 00:30:46]} {[%emt 00:01:01]} 28. Ra3 {[%clk
00:29:34]} {[%emt 00:01:16]} Ra8 {[%clk 00:29:56]} {[%emt 00:01:17]} 29. Rda1
{[%clk 00:27:44]} {[%emt 00:02:21]} hxg3 {[%clk 00:28:24]} {[%emt 00:02:01]} 30.
hxg3 {[%clk 00:27:45]} {[%emt 00:00:31]} Rdb8 {[%clk 00:17:30]} {[%emt
00:11:22]} 31. Nc4 {[%clk 00:26:22]} {[%emt 00:01:54]} Bc8 {[%clk 00:14:54]}
{[%emt 00:03:02]} 32. Nb6 {[%clk 00:26:41]} {[%emt 00:00:16]} Ra7 {[%clk
00:14:38]} {[%emt 00:00:45]} 33. Bxa6 {[%clk 00:26:24]} {[%emt 00:00:48]} Rxa6
{[%clk 00:10:10]} {[%emt 00:04:58]} 34. Rxa6 {[%clk 00:26:09]} {[%emt
00:00:45]} Bxa6 {[%clk 00:10:10]} {[%emt 00:00:29]} 35. Rxa6 {[%clk 00:25:32]}
{[%emt 00:01:07]} Ke7 {[%clk 00:10:13]} {[%emt 00:00:25]} 36. f4 {[%clk
00:22:50]} {[%emt 00:03:14]} Nf8 {[%clk 00:07:07]} {[%emt 00:03:16]} 37. b5
{[%clk 00:20:38]} {[%emt 00:03:03]} Nd8 {[%clk 00:07:05]} {[%emt 00:00:28]} 38.
Nd4 {[%clk 00:17:36]} {[%emt 00:03:35]} Rb7 {[%clk 00:03:06]} {[%emt 00:03:36]}
39. e5 {[%clk 00:16:59]} {[%emt 00:02:00]} Rc7 {[%clk 00:02:42]} {[%emt
00:00:52]} 40. Nf5+ {[%clk 00:15:14]} {[%emt 00:02:18]} exf5 {[%clk 00:01:44]}
{[%emt 00:01:28]} 41. Nd5+ {[%clk 00:15:38]} {[%emt 00:00:06]} Ke8 {[%clk
00:01:44]} {[%emt 00:00:28]} 42. Nxc7+ {[%clk 00:16:04]} {[%emt 00:00:05]} Ke7
{[%clk 00:01:59]} {[%emt 00:00:16]} 43. Ra8 {[%clk 00:15:01]} {[%emt 00:01:33]}
Nfe6 {[%clk 00:01:37]} {[%emt 00:00:52]} 44. Nd5+ {[%clk 00:13:30]} {[%emt
00:02:00]} Ke8 {[%clk 00:01:29]} {[%emt 00:00:34]} 45. c6 {[%clk 00:12:55]}
{[%emt 00:01:10]} dxc6 {[%clk 00:01:28]} {[%emt 00:00:30]} 46. bxc6 {[%clk
00:13:20]} {[%emt 00:00:06]} g6 {[%clk 00:00:36]} {[%emt 00:01:22]} 47. c7
{[%clk 00:13:40]} {[%emt 00:00:09]} Nxc7 {[%clk 00:00:46]} {[%emt 00:00:20]} 48.
Nxc7+ {[%clk 00:14:06]} {[%emt 00:00:05]} Kd7 {[%clk 00:01:09]} {[%emt
00:00:07]} 49. Rxd8+ {[%clk 00:12:38]} {[%emt 00:01:57]} Kxd8 {[%clk 00:01:28]}
{[%emt 00:00:11]} 50. Nd5 {[%clk 00:13:06]} {[%emt 00:00:03]} Kd7 {[%clk
00:01:36]} {[%emt 00:00:21]} 51. Nf6+ {[%clk 00:13:23]} {[%emt 00:00:13]} Ke6
{[%clk 00:01:53]} {[%emt 00:00:13]} 52. Kd2 {[%clk 00:13:33]} {[%emt 00:00:21]}
Ke7 {[%clk 00:02:07]} {[%emt 00:00:16]} 53. Kd3 {[%clk 00:13:48]} {[%emt
00:00:15]} Ke6 {[%clk 00:02:25]} {[%emt 00:00:10]} 54. Kd4 {[%clk 00:14:10]}
{[%emt 00:00:10]} Ke7 {[%clk 00:02:11]} {[%emt 00:00:44]} 55. Kd5 {[%clk
00:14:22]} {[%emt 00:00:17]} Kf8 {[%clk 00:02:16]} {[%emt 00:00:24]} 56. Kd6
{[%clk 00:14:41]} {[%emt 00:00:12]} Kg7 {[%clk 00:02:38]} {[%emt 00:00:09]} 57.
Ke7 {[%clk 00:14:39]} {[%emt 00:00:31]} Kh6 {[%clk 00:02:38]} {[%emt 00:00:29]}
58. Kxf7 {[%clk 00:15:03]} {[%emt 00:00:08]} g5 {[%clk 00:02:44]} {[%emt
00:00:22]} 59. Ng8+ {[%clk 00:14:35]} {[%emt 00:01:00]} Kh5 {[%clk 00:02:52]}
{[%emt 00:00:18]} 60. fxg5 {[%clk 00:14:26]} {[%emt 00:00:42]} Kxg5 {[%clk
00:03:07]} {[%emt 00:00:16]} 61. Ne7 {[%clk 00:12:53]} {[%emt 00:02:03]} f4
{[%clk 00:03:06]} {[%emt 00:00:31]} 62. gxf4+ {[%clk 00:12:58]} {[%emt
00:00:26]} Kxf4 {[%clk 00:03:11]} {[%emt 00:00:24]} 63. Ng6+ {[%clk 00:13:04]}
{[%emt 00:00:23]} Kf5 {[%clk 00:03:19]} {[%emt 00:00:23]} 64. e6 {[%clk
00:13:25]} 1-0

[Event "Mistrovství Čech mládeže 2023 - HD12"]
[Site "Harrachov, Czech Republic"]
[Date "2023.10.22"]
[Round "2.5"]
[White "Kubát, Jonáš"]
[Black "Vorlík, Jáchym"]
[Result "1-0"]
[TimeControl "90m + 30s"]
[WhiteElo "1423"]
[BlackElo "1210"]

1. e4 {[%clk 01:30:56]} {[%emt 00:00:02]} e6 {[%clk 01:30:51]} {[%emt
00:00:10]} 2. d4 {[%clk 01:31:12]} {[%emt 00:00:14]} d5 {[%clk 01:31:10]}
{[%emt 00:00:11]} 3. exd5 {[%clk 01:31:24]} {[%emt 00:00:18]} exd5 {[%clk
01:31:32]} {[%emt 00:00:09]} 4. c4 {[%clk 01:31:34]} {[%emt 00:00:20]} Be6
{[%clk 01:30:47]} {[%emt 00:01:15]} 5. Qb3 {[%clk 01:31:02]} {[%emt 00:01:01]}
b6 {[%clk 01:29:16]} {[%emt 00:02:02]} 6. Nc3 {[%clk 01:31:01]} {[%emt
00:00:30]} dxc4 {[%clk 01:26:54]} {[%emt 00:02:52]} 7. Bxc4 {[%clk 01:31:19]}
{[%emt 00:00:12]} Qxd4 {[%clk 01:25:37]} {[%emt 00:01:46]} 8. Bxe6 {[%clk
01:31:00]} {[%emt 00:00:50]} Qe5+ {[%clk 01:25:13]} {[%emt 00:00:54]} 9. Nge2
{[%clk 01:30:26]} {[%emt 00:01:03]} Qxe6 {[%clk 01:25:02]} {[%emt 00:00:42]} 10.
Qxe6+ {[%clk 01:29:39]} {[%emt 00:01:17]} fxe6 {[%clk 01:25:22]} {[%emt
00:00:10]} 11. O-O {[%clk 01:28:45]} {[%emt 00:01:23]} Bd6 {[%clk 01:25:26]}
{[%emt 00:00:27]} 12. Nd4 {[%clk 01:27:26]} {[%emt 00:01:49]} e5 {[%clk
01:22:32]} {[%emt 00:03:24]} 13. Re1 {[%clk 01:27:32]} {[%emt 00:00:23]} Nd7
{[%clk 01:22:25]} {[%emt 00:00:37]} 14. Nf3 {[%clk 01:23:58]} {[%emt 00:04:04]}
O-O-O {[%clk 01:21:52]} {[%emt 00:01:04]} 15. Be3 {[%clk 01:22:28]} {[%emt
00:02:00]} Ngf6 {[%clk 01:20:52]} {[%emt 00:01:30]} 16. Rac1 {[%clk 01:20:59]}
{[%emt 00:01:59]} Kb7 {[%clk 01:18:12]} {[%emt 00:03:10]} 17. a3 {[%clk
01:15:36]} {[%emt 00:05:52]} h6 {[%clk 01:17:40]} {[%emt 00:01:02]} 18. Nh4
{[%clk 01:13:11]} {[%emt 00:02:55]} Ng4 {[%clk 01:12:24]} {[%emt 00:05:47]} 19.
h3 {[%clk 01:08:01]} {[%emt 00:05:40]} Nxe3 {[%clk 01:12:17]} {[%emt 00:00:37]}
20. Rxe3 {[%clk 01:08:12]} {[%emt 00:00:18]} Be7 {[%clk 01:10:02]} {[%emt
00:02:45]} 21. Ng6 {[%clk 01:02:02]} {[%emt 00:06:40]} Bg5 {[%clk 01:05:48]}
{[%emt 00:04:45]} 22. Nxh8 {[%clk 01:01:23]} {[%emt 00:01:07]} Bxe3 {[%clk
01:05:43]} {[%emt 00:00:37]} 23. fxe3 {[%clk 01:00:46]} {[%emt 00:01:07]} Rxh8
{[%clk 01:05:55]} {[%emt 00:00:18]} 24. Rd1 {[%clk 00:53:42]} {[%emt 00:07:34]}
Rd8 {[%clk 01:04:22]} {[%emt 00:02:03]} 25. Kf2 {[%clk 00:48:27]} {[%emt
00:05:43]} Rf8+ {[%clk 01:03:47]} {[%emt 00:01:07]} 26. Ke2 {[%clk 00:48:08]}
{[%emt 00:00:48]} Nf6 {[%clk 01:03:10]} {[%emt 00:01:07]} 27. g4 {[%clk
00:42:55]} {[%emt 00:05:44]} c6 {[%clk 01:01:45]} {[%emt 00:01:55]} 28. b4
{[%clk 00:39:14]} {[%emt 00:04:10]} g5 {[%clk 01:01:34]} {[%emt 00:00:42]} 29.
Rd6 {[%clk 00:37:00]} {[%emt 00:02:43]} Kc7 {[%clk 00:57:35]} {[%emt 00:04:30]}
30. Re6 {[%clk 00:36:18]} {[%emt 00:01:12]} Kd7 {[%clk 00:56:03]} {[%emt
00:02:00]} 31. Rxe5 {[%clk 00:34:48]} {[%emt 00:02:02]} Kd6 {[%clk 00:55:56]}
{[%emt 00:00:36]} 32. Rf5 {[%clk 00:34:34]} {[%emt 00:00:45]} Ke6 {[%clk
00:55:41]} {[%emt 00:00:45]} 33. a4 {[%clk 00:29:38]} {[%emt 00:05:27]} Rg8
{[%clk 00:54:26]} {[%emt 00:01:42]} 34. Kf3 {[%clk 00:28:27]} {[%emt 00:01:43]}
h5 {[%clk 00:54:01]} {[%emt 00:00:54]} 35. Ne4 {[%clk 00:24:45]} {[%emt
00:04:12]} hxg4+ {[%clk 00:51:31]} {[%emt 00:03:00]} 36. hxg4 {[%clk 00:25:00]}
{[%emt 00:00:15]} Nxe4 {[%clk 00:51:04]} {[%emt 00:00:57]} 37. Kxe4 {[%clk
00:25:15]} {[%emt 00:00:16]} Re8 {[%clk 00:46:53]} {[%emt 00:04:42]} 38. Rxg5
{[%clk 00:24:00]} {[%emt 00:01:44]} Kf6+ {[%clk 00:47:00]} {[%emt 00:00:23]} 39.
Kf4 {[%clk 00:24:20]} {[%emt 00:00:10]} Re4+ {[%clk 00:47:13]} {[%emt
00:00:17]} 40. Kxe4 {[%clk 00:24:11]} {[%emt 00:00:38]} Kxg5 {[%clk 00:47:37]}
{[%emt 00:00:06]} 41. Ke5 {[%clk 00:23:46]} {[%emt 00:00:56]} Kxg4 {[%clk
00:47:27]} {[%emt 00:00:40]} 42. Kd6 {[%clk 00:23:20]} {[%emt 00:00:55]} a5
{[%clk 00:46:24]} {[%emt 00:01:34]} 43. bxa5 {[%clk 00:20:27]} {[%emt
00:03:23]} bxa5 {[%clk 00:45:54]} {[%emt 00:01:00]} 44. Kxc6 {[%clk 00:20:35]}
{[%emt 00:00:21]} Kf3 {[%clk 00:46:18]} {[%emt 00:00:07]} 45. Kb5 {[%clk
00:20:52]} {[%emt 00:00:13]} Kxe3 {[%clk 00:46:36]} {[%emt 00:00:12]} 46. Kxa5
{[%clk 00:21:00]} {[%emt 00:00:22]} Kd4 {[%clk 00:46:53]} {[%emt 00:00:13]} 47.
Kb6 {[%clk 00:21:15]} {[%emt 00:00:15]} Kd5 {[%clk 00:47:11]} {[%emt 00:00:12]}
48. a5 {[%clk 00:21:31]} {[%emt 00:00:14]} Kd6 {[%clk 00:47:28]} {[%emt
00:00:12]} 49. Kb7 {[%clk 00:21:47]} {[%emt 00:00:14]} Kc5 {[%clk 00:47:43]}
{[%emt 00:00:15]} 50. a6 {[%clk 00:22:08]} {[%emt 00:00:10]} Kb5 {[%clk
00:48:06]} {[%emt 00:00:07]} 51. a7 {[%clk 00:22:21]} {[%emt 00:00:17]} 1-0

[Event "Mistrovství Čech mládeže 2023 - HD12"]
[Site "Harrachov, Czech Republic"]
[Date "2023.10.22"]
[Round "2.6"]
[White "Štěpánková, Linda"]
[Black "Rendl, Luboš"]
[Result "0-1"]
[TimeControl "90m + 30s"]
[WhiteElo "1281"]
[BlackElo "1420"]

1. e4 {[%clk 01:30:44]} {[%emt 00:00:15]} e5 {[%clk 01:30:30]} {[%emt
00:00:30]} 2. Nf3 {[%clk 01:30:53]} {[%emt 00:00:21]} Nc6 {[%clk 01:30:55]}
{[%emt 00:00:05]} 3. Bb5 {[%clk 01:31:10]} {[%emt 00:00:13]} a6 {[%clk
01:30:52]} {[%emt 00:00:34]} 4. Ba4 {[%clk 01:30:42]} {[%emt 00:00:57]} Nf6
{[%clk 01:31:02]} {[%emt 00:00:20]} 5. d3 {[%clk 01:30:26]} {[%emt 00:00:46]}
d6 {[%clk 01:30:42]} {[%emt 00:00:50]} 6. O-O {[%clk 01:28:58]} {[%emt
00:01:59]} Bg4 {[%clk 01:29:19]} {[%emt 00:01:53]} 7. Bxc6+ {[%clk 01:28:45]}
{[%emt 00:00:43]} bxc6 {[%clk 01:29:31]} {[%emt 00:00:18]} 8. Nbd2 {[%clk
01:27:41]} {[%emt 00:01:33]} Rb8 {[%clk 01:27:15]} {[%emt 00:02:46]} 9. c3
{[%clk 01:26:16]} {[%emt 00:01:56]} Be7 {[%clk 01:20:44]} {[%emt 00:07:00]} 10.
Qa4 {[%clk 01:21:18]} {[%emt 00:05:29]} O-O {[%clk 01:15:35]} {[%emt 00:05:39]}
11. Qxa6 {[%clk 01:15:10]} {[%emt 00:06:38]} Nh5 {[%clk 01:12:58]} {[%emt
00:03:06]} 12. h3 {[%clk 01:12:19]} {[%emt 00:03:22]} Bd7 {[%clk 01:04:16]}
{[%emt 00:09:07]} 13. d4 {[%clk 01:09:33]} {[%emt 00:03:21]} Rb6 {[%clk
00:56:47]} {[%emt 00:07:58]} 14. Qe2 {[%clk 01:07:01]} {[%emt 00:02:53]} Nf4
{[%clk 00:52:39]} {[%emt 00:04:47]} 15. Qe3 {[%clk 01:05:59]} {[%emt 00:01:32]}
Bg5 {[%clk 00:51:49]} {[%emt 00:01:21]} 16. Nxg5 {[%clk 01:05:16]} {[%emt
00:01:13]} Qxg5 {[%clk 00:52:08]} {[%emt 00:00:10]} 17. g4 {[%clk 00:55:02]}
{[%emt 00:10:45]} Bxg4 {[%clk 00:47:01]} {[%emt 00:05:37]} 0-1

[Event "Mistrovství Čech mládeže 2023 - HD12"]
[Site "Harrachov, Czech Republic"]
[Date "2023.10.22"]
[Round "2.7"]
[White "Málek, Daniel"]
[Black "Zika, Miroslav"]
[Result "0-1"]
[TimeControl "90m + 30s"]
[WhiteElo "1404"]
[BlackElo "1199"]

1. e4 {[%clk 01:30:42]} {[%emt 00:00:17]} e5 {[%clk 01:30:52]} {[%emt
00:00:09]} 2. Nf3 {[%clk 01:31:06]} {[%emt 00:00:05]} Nc6 {[%clk 01:31:12]}
{[%emt 00:00:10]} 3. Bc4 {[%clk 01:31:31]} {[%emt 00:00:05]} Bc5 {[%clk
01:31:27]} {[%emt 00:00:15]} 4. d3 {[%clk 01:31:49]} {[%emt 00:00:11]} Nf6
{[%clk 01:31:33]} {[%emt 00:00:25]} 5. Nc3 {[%clk 01:32:07]} {[%emt 00:00:12]}
h6 {[%clk 01:31:39]} {[%emt 00:00:23]} 6. Be3 {[%clk 01:32:19]} {[%emt
00:00:18]} Bb6 {[%clk 01:31:49]} {[%emt 00:00:21]} 7. Qd2 {[%clk 01:32:38]}
{[%emt 00:00:11]} d6 {[%clk 01:32:02]} {[%emt 00:00:17]} 8. h3 {[%clk
01:32:30]} {[%emt 00:00:38]} Be6 {[%clk 01:32:15]} {[%emt 00:00:18]} 9. Bb5
{[%clk 01:32:27]} {[%emt 00:00:32]} Qd7 {[%clk 01:31:53]} {[%emt 00:00:52]} 10.
d4 {[%clk 01:32:32]} {[%emt 00:00:25]} exd4 {[%clk 01:31:49]} {[%emt 00:00:34]}
11. Bxd4 {[%clk 01:32:50]} {[%emt 00:00:12]} Bxd4 {[%clk 01:31:11]} {[%emt
00:01:08]} 12. Nxd4 {[%clk 01:33:00]} {[%emt 00:00:19]} a6 {[%clk 01:30:46]}
{[%emt 00:00:56]} 13. Ba4 {[%clk 01:32:45]} {[%emt 00:00:45]} O-O {[%clk
01:30:20]} {[%emt 00:00:57]} 14. O-O {[%clk 01:33:01]} {[%emt 00:00:13]} Bc4
{[%clk 01:29:37]} {[%emt 00:01:13]} 15. Rfd1 {[%clk 01:32:58]} {[%emt
00:00:33]} b5 {[%clk 01:28:25]} {[%emt 00:01:42]} 16. Bb3 {[%clk 01:33:10]}
{[%emt 00:00:18]} Bxb3 {[%clk 01:26:34]} {[%emt 00:02:21]} 17. axb3 {[%clk
01:33:35]} {[%emt 00:00:06]} b4 {[%clk 01:25:59]} {[%emt 00:01:05]} 18. Nce2
{[%clk 01:32:01]} {[%emt 00:02:03]} Nxe4 {[%clk 01:24:30]} {[%emt 00:01:57]} 19.
Qd3 {[%clk 01:32:11]} {[%emt 00:00:20]} Nc5 {[%clk 01:23:17]} {[%emt 00:01:45]}
20. Qc4 {[%clk 01:31:52]} {[%emt 00:00:47]} Rfe8 {[%clk 01:19:01]} {[%emt
00:04:48]} 21. Ng3 {[%clk 01:29:41]} {[%emt 00:02:39]} a5 {[%clk 01:17:17]}
{[%emt 00:02:16]} 22. Ndf5 {[%clk 01:28:26]} {[%emt 00:01:43]} Ne5 {[%clk
01:15:06]} {[%emt 00:02:42]} 23. Qd4 {[%clk 01:28:09]} {[%emt 00:00:45]} Red8
{[%clk 01:13:13]} {[%emt 00:02:26]} 24. f4 {[%clk 01:27:48]} {[%emt 00:00:50]}
Ne6 {[%clk 01:12:49]} {[%emt 00:00:54]} 25. Qd5 {[%clk 01:25:32]} {[%emt
00:02:46]} Nxf4 {[%clk 01:09:14]} {[%emt 00:04:05]} 26. Qe4 {[%clk 01:23:17]}
{[%emt 00:02:46]} Nfg6 {[%clk 01:08:40]} {[%emt 00:01:04]} 27. Nh5 {[%clk
01:21:16]} {[%emt 00:02:29]} d5 {[%clk 01:01:55]} {[%emt 00:07:18]} 28. Nxh6+
{[%clk 01:18:58]} {[%emt 00:02:46]} gxh6 {[%clk 01:00:07]} {[%emt 00:02:19]} 29.
Rxd5 {[%clk 01:17:45]} {[%emt 00:01:43]} Qc6 {[%clk 00:57:03]} {[%emt
00:03:34]} 30. Rxe5 {[%clk 01:16:29]} {[%emt 00:01:46]} Nxe5 {[%clk 00:53:14]}
{[%emt 00:04:19]} 31. Qxe5 {[%clk 01:16:46]} {[%emt 00:00:12]} Qb6+ {[%clk
00:50:58]} {[%emt 00:02:45]} 32. Kh1 {[%clk 01:16:31]} {[%emt 00:00:45]} Qg6
{[%clk 00:49:27]} {[%emt 00:02:03]} 33. Nf6+ {[%clk 01:13:56]} {[%emt
00:03:02]} Kf8 {[%clk 00:47:23]} {[%emt 00:02:35]} 34. Re1 {[%clk 01:11:17]}
{[%emt 00:03:09]} Rd2 {[%clk 00:33:41]} {[%emt 00:14:14]} 35. Ng4 {[%clk
01:10:12]} {[%emt 00:01:34]} Kg8 {[%clk 00:33:33]} {[%emt 00:00:40]} 36. Nf6+
{[%clk 01:09:28]} {[%emt 00:01:13]} Kh8 {[%clk 00:30:42]} {[%emt 00:03:21]} 37.
Ne4+ {[%clk 01:09:24]} {[%emt 00:00:33]} f6 {[%clk 00:29:38]} {[%emt 00:01:35]}
38. Qg3 {[%clk 01:07:09]} {[%emt 00:02:44]} Qxg3 {[%clk 00:29:31]} {[%emt
00:00:37]} 39. Nxg3 {[%clk 01:07:36]} {[%emt 00:00:04]} Rxc2 {[%clk 00:29:19]}
{[%emt 00:00:43]} 40. Re7 {[%clk 01:07:38]} {[%emt 00:00:27]} Rg8 {[%clk
00:28:44]} {[%emt 00:01:05]} 41. Nh5 {[%clk 01:07:34]} {[%emt 00:00:33]} Rgxg2
{[%clk 00:25:30]} {[%emt 00:03:46]} 42. Nxf6 {[%clk 01:07:23]} {[%emt
00:00:39]} Rh2+ {[%clk 00:23:56]} {[%emt 00:02:05]} 43. Kg1 {[%clk 01:07:34]}
{[%emt 00:00:19]} Rcg2+ {[%clk 00:23:10]} {[%emt 00:01:16]} 44. Kf1 {[%clk
01:07:48]} {[%emt 00:00:15]} Rf2+ {[%clk 00:22:48]} {[%emt 00:00:53]} 45. Kg1
{[%clk 01:08:11]} {[%emt 00:00:07]} Rxf6 {[%clk 00:22:24]} {[%emt 00:00:54]} 46.
Kxh2 {[%clk 01:08:30]} {[%emt 00:00:11]} Rf2+ {[%clk 00:21:29]} {[%emt
00:01:24]} 47. Kg3 {[%clk 01:08:34]} {[%emt 00:00:27]} Rxb2 {[%clk 00:21:33]}
{[%emt 00:00:26]} 48. Rxc7 {[%clk 01:08:45]} {[%emt 00:00:19]} Rxb3+ {[%clk
00:21:30]} {[%emt 00:00:33]} 49. Kg4 {[%clk 01:08:58]} {[%emt 00:00:18]} Kg8
{[%clk 00:21:14]} {[%emt 00:00:45]} 50. Kf5 {[%clk 01:09:00]} {[%emt 00:00:28]}
Rxh3 {[%clk 00:19:44]} {[%emt 00:02:01]} 51. Kf6 {[%clk 01:09:21]} {[%emt
00:00:09]} Rf3+ {[%clk 00:19:21]} {[%emt 00:00:52]} 52. Kg6 {[%clk 01:09:43]}
{[%emt 00:00:08]} Rg3+ {[%clk 00:17:56]} {[%emt 00:01:56]} 53. Kf6 {[%clk
01:09:52]} {[%emt 00:00:18]} b3 {[%clk 00:17:36]} {[%emt 00:00:52]} 54. Rc8+
{[%clk 01:10:02]} {[%emt 00:00:20]} Kh7 {[%clk 00:17:41]} {[%emt 00:00:25]} 55.
Rc7+ {[%clk 01:10:30]} {[%emt 00:00:03]} Kh8 {[%clk 00:17:54]} {[%emt
00:00:16]} 56. Rc8+ {[%clk 01:10:57]} {[%emt 00:00:02]} Rg8 {[%clk 00:17:43]}
{[%emt 00:00:42]} 57. Rc5 {[%clk 01:10:37]} {[%emt 00:00:49]} Rb8 {[%clk
00:17:16]} {[%emt 00:00:58]} 58. Kf7 {[%clk 01:10:08]} {[%emt 00:01:00]} b2
{[%clk 00:16:42]} {[%emt 00:01:03]} 59. Rh5 {[%clk 01:10:29]} {[%emt 00:00:09]}
b1=Q {[%clk 00:16:42]} {[%emt 00:00:30]} 60. Rxh6+ {[%clk 01:10:49]} {[%emt
00:00:09]} Qh7+ {[%clk 00:17:00]} {[%emt 00:00:12]} 0-1